fUSD/lending_fUSD_20250530
["ID","MTS","AMOUNT","RATE_DAILY","PERIOD"]
[363083413,1748571057258,-540.39219534,0.00022191,2]
[363083414,1748571057268,-442.73,0.00022191,2]
[363083415,1748571057278,-420.0,0.00022191,2]
[363083416,1748571057287,-452.33,0.00022191,2]
[363083417,1748571057296,-1393.25,0.00022191,2]
[363083418,1748571057307,-420.0,0.00022191,2]
[363083419,1748571057318,-151.0,0.00022191,7]
[363083420,1748571057327,-156.479488,0.00022191,7]
[363083421,1748571057337,-420.0,0.00022191,2]
[363083422,1748571057347,-1025.64,0.00022191,2]
[363083423,1748571057357,-1130.86,0.00022191,2]
[363083424,1748571057366,-340.79072748,0.00022191,2]
[363083425,1748571057375,-420.0,0.00022191,2]
[363083426,1748571057386,-567.8,0.00022191,2]
[363083427,1748571057395,-420.0,0.00022191,2]
[363083428,1748571057404,-420.0,0.00022191,2]
[363083429,1748571057413,-789.81,0.00022191,2]
[363083430,1748571057422,-420.0,0.00022191,2]
[363083431,1748571057432,-420.0,0.00022191,2]
[363083432,1748571057441,-151.0,0.00022191,7]
[363083433,1748571057451,-519.7,0.00022191,2]
[363083434,1748571057460,-151.0,0.00022191,7]
[363083435,1748571057470,-151.0,0.00022191,7]
[363083436,1748571057479,-420.0,0.00022191,2]
[363083437,1748571057488,-1621.85,0.00022191,2]
[363083438,1748571057497,-1365.46,0.00022191,2]
[363083439,1748571057507,-420.0,0.00022191,2]
[363083440,1748571057518,-462.31,0.00022191,2]
[363083441,1748571057528,-151.0,0.00022191,7]
[363083442,1748571057537,-156.517845,0.00022191,7]
[363083443,1748571057546,-420.0,0.00022191,2]
[363083444,1748571057555,-572.75,0.00022191,2]
[363083445,1748571057565,-1039.45,0.00022191,2]
[363083446,1748571057579,-479.68,0.00022191,2]
[363083447,1748571057588,-524.13,0.00022191,2]
[363083448,1748571057597,-420.0,0.00022191,2]
[363083449,1748571057606,-420.0,0.00022191,2]
[363083450,1748571057615,-420.0,0.00022191,2]
[363083451,1748571057625,-151.0,0.00022191,7]
[363083452,1748571057634,-420.0,0.00022191,2]
[363083453,1748571057644,-525.18,0.00022191,2]
[363083454,1748571057653,-151.0,0.00022191,7]
[363083455,1748571057663,-151.0,0.00022191,7]
[363083456,1748571057673,-420.0,0.00022191,2]
[363083457,1748571057682,-622.44,0.00022191,2]
[363083458,1748571057692,-420.0,0.00022191,2]
[363083459,1748571057701,-420.0,0.00022191,2]
[363083460,1748571057711,-420.0,0.00022191,2]
[363083461,1748571057720,-420.0,0.00022191,2]
[363083462,1748571057729,-420.0,0.00022191,2]
[363083463,1748571057739,-490.45011225,0.00022191,2]
[363083464,1748571057748,-420.0,0.00022191,2]
[363083465,1748571057757,-151.0,0.00022191,7]
[363083466,1748571057769,-151.0,0.00022191,7]
[363083467,1748571057779,-151.0,0.00022191,7]
[363083468,1748571057788,-574.78,0.00022191,2]
[363083469,1748571057798,-420.0,0.00022191,2]
[363083470,1748571057808,-420.0,0.00022191,2]
[363083471,1748571057818,-420.0,0.00022191,2]
[363083472,1748571057827,-151.0,0.00022191,7]
[363083473,1748571057837,-1199.94,0.00022191,2]
[363083474,1748571057846,-936.333288,0.00022191,7]
[363083475,1748571057856,-151.0,0.00022191,7]
[363083476,1748571057865,-936.333288,0.00022191,7]
[363083477,1748571057874,-151.0,0.00022191,7]
[363083478,1748571057884,-936.333288,0.00022191,7]
[363083479,1748571057893,-420.0,0.00022191,2]
[363083480,1748571057903,-936.333288,0.00022191,7]
[363083481,1748571057913,-936.333288,0.00022191,7]
[363083482,1748571057922,-936.333288,0.00022191,7]
[363083483,1748571057931,-473.02,0.00022191,2]
[363083484,1748571057940,-713.89,0.00022191,2]
[363083485,1748571057950,-420.0,0.00022191,2]
[363083486,1748571057959,-420.0,0.00022191,2]
[363083487,1748571057968,-420.0,0.00022191,2]
[363083488,1748571057978,-1246.26,0.00022191,2]
[363083489,1748571057987,-420.0,0.00022191,2]
[363083490,1748571057996,-420.0,0.00022191,2]
[363083491,1748571058006,-420.0,0.00022191,2]
[363083492,1748571058016,-420.0,0.00022191,2]
[363083493,1748571058026,-420.0,0.00022191,2]
[363083494,1748571058035,-505.74,0.00022191,2]
[363083495,1748571058045,-420.0,0.00022191,2]
[363083496,1748571058055,-2016.39,0.00022191,2]
[363083497,1748571058064,-420.0,0.00022191,2]
[363083498,1748571058074,-420.0,0.00022191,2]
[363083499,1748571058083,-359.1266664,0.00022191,2]
[363083500,1748571058093,-420.0,0.00022191,2]
[363083501,1748571058102,-1120.24,0.00022191,2]
[363083502,1748571058112,-420.0,0.00022191,2]
[363083503,1748571058122,-420.0,0.00022191,2]
[363083504,1748571058132,-924.99,0.00022191,2]
[363083505,1748571058142,-420.0,0.00022191,2]
[363083506,1748571058154,-420.0,0.00022191,2]
[363083507,1748571058163,-422.64201768,0.00022191,2]
[363083508,1748571058172,-569.33244095,0.00022191,2]
[363083509,1748571058182,-420.0,0.00022191,2]
[363083510,1748571058191,-511.25,0.00022191,2]
[363083511,1748571058200,-527.24,0.00022191,2]
[363083512,1748571058213,-1011.62,0.00022191,2]
[363083513,1748571058223,-2637.98,0.00022191,2]
[363083514,1748571058232,-420.0,0.00022191,2]
[363083515,1748571058242,-1353.0,0.00022191,2]
[363083516,1748571058251,-151.0,0.00022191,7]
[363083517,1748571058260,-151.0,0.00022191,7]
[363083518,1748571058272,-244.624182,0.00022191,7]
[363083519,1748571058282,-420.0,0.00022191,2]
[363083520,1748571058291,-430.89741829,0.00022191,2]
[363083521,1748571058301,-420.0,0.00022191,2]
[363083522,1748571058314,-546.69,0.00022191,2]
[363083523,1748571058324,-1697.2,0.00022191,2]
[363083524,1748571058333,-825.7,0.00022191,2]
[363083525,1748571058343,-151.0,0.00022191,7]
[363083526,1748571058354,-420.0,0.00022191,2]
[363083527,1748571058364,-151.0,0.00022191,7]
[363083528,1748571058373,-153.153984,0.00022191,7]
[363083529,1748571058385,-420.0,0.00022191,2]
[363083530,1748571058394,-420.0,0.00022191,2]
[363083531,1748571058404,-536.43,0.00022191,2]
[363083532,1748571058414,-151.0,0.00022191,7]
[363083533,1748571058423,-151.0,0.00022191,7]
[363083534,1748571058433,-1445.53,0.00022191,2]
[363083535,1748571058442,-151.633886,0.00022191,7]
[363083536,1748571058451,-420.0,0.00022191,2]
[363083537,1748571058461,-11564.71299085,0.00022191,2]
[363083538,1748571058980,-899.246977,0.00022191,2]
[363083539,1748571059036,-16672.71040964,0.00022191,2]
[363083540,1748571059090,-797.29927228,0.00022191,2]
[363083541,1748571059102,-1269.7494336,0.00022191,2]
[363083542,1748571059206,-8699.30091663,0.00022191,2]
[363083543,1748571059217,-426.52115651,0.00022191,2]
[363083544,1748571059227,-582.04,0.00022191,2]
[363083545,1748571059238,-693.71,0.00022191,2]
[363083546,1748571059249,-420.0,0.00022191,2]
[363083547,1748571059259,-1093.89,0.00022191,2]
[363083548,1748571059271,-420.0,0.00022191,2]
[363083549,1748571059281,-420.0,0.00022191,2]
[363083550,1748571059291,-420.0,0.00022191,2]
[363083551,1748571059301,-423.24968129,0.00022191,2]
[363083552,1748571059320,-324.28031871,0.00022191,2]
[363083553,1748571059332,-2796.64,0.00022191,2]
[363083554,1748571059343,-420.0,0.00022191,2]
[363083555,1748571059356,-744.8,0.00022191,2]
[363083556,1748571059366,-420.0,0.00022191,2]
[363083557,1748571059376,-1946.74,0.00022191,2]
[363083558,1748571059389,-1063.84,0.00022191,2]
[363083559,1748571059400,-420.0,0.00022191,2]
[363083560,1748571059411,-1273.74,0.00022191,2]
[363083561,1748571059421,-704.01,0.00022191,2]
[363083562,1748571059432,-420.0,0.00022191,2]
[363083563,1748571059441,-542.58,0.00022191,2]
[363083564,1748571059452,-531.07,0.00022191,2]
[363083565,1748571059462,-463.54,0.00022191,2]
[363083566,1748571059471,-1960.15,0.00022191,2]
[363083567,1748571059481,-24818.68,0.00022191,2]
[363083568,1748571059491,-571.06,0.00022191,2]
[363083569,1748571059501,-1384.76,0.00022191,2]
[363083570,1748571059510,-1644.18,0.00022191,2]
[363083571,1748571059523,-1651.1,0.00022191,2]
[363083572,1748571059533,-881.17,0.00022191,2]
[363083573,1748571059543,-486.31,0.00022191,2]
[363083574,1748571059554,-1643.84,0.00022191,2]
[363083575,1748571059564,-420.0,0.00022191,2]
[363083576,1748571059575,-1336.39,0.00022191,2]
[363083577,1748571059584,-420.0,0.00022191,2]
[363083578,1748571059593,-420.0,0.00022191,2]
[363083579,1748571059603,-151.0,0.00022191,7]
[363083580,1748571059613,-151.0,0.00022191,7]
[363083581,1748571059622,-151.0,0.00022191,7]
[363083582,1748571059632,-420.0,0.00022191,2]
[363083583,1748571059641,-3030.01,0.00022191,2]
[363083584,1748571059652,-619.84,0.00022191,2]
[363083585,1748571059663,-1672.32,0.00022191,2]
[363083586,1748571059672,-1182.72,0.00022191,2]
[363083587,1748571059682,-481.63,0.00022191,2]
[363083588,1748571059691,-420.0,0.00022191,2]
[363083589,1748571059701,-1151.81,0.00022191,2]
[363083590,1748571059710,-932.7,0.00022191,2]
[363083591,1748571059720,-1521.47,0.00022191,2]
[363083592,1748571059729,-182.893957,0.00022191,7]
[363083593,1748571059739,-420.0,0.00022191,2]
[363083594,1748571059750,-699.65,0.00022191,2]
[363083595,1748571059761,-1533.21,0.00022191,2]
[363083596,1748571059772,-8903.64,0.00022191,2]
[363083597,1748571059782,-151.0,0.00022191,7]
[363083598,1748571059793,-151.0,0.00022191,7]
[363083599,1748571059803,-1093.0,0.00022191,2]
[363083600,1748571059814,-151.0,0.00022191,7]
[363083601,1748571059824,-721.28,0.00022191,2]
[363083602,1748571059834,-741.27667927,0.00022191,2]
[363083603,1748571059844,-1606.73,0.00022191,2]
[363083604,1748571059855,-1432.01,0.00022191,2]
[363083605,1748571059865,-420.0,0.00022191,2]
[363083606,1748571059875,-3003.38,0.00022191,2]
[363083607,1748571059887,-420.0,0.00022191,2]
[363083608,1748571059898,-420.0,0.00022191,2]
[363083609,1748571059909,-420.0,0.00022191,2]
[363083610,1748571059920,-4806.56,0.00022191,2]
[363083611,1748571059931,-1588.5,0.00022191,2]
[363083612,1748571059941,-429.46,0.00022191,2]
[363083613,1748571059951,-929.25,0.00022191,2]
[363083614,1748571059960,-474.91,0.00022191,2]
[363083615,1748571059970,-2170.74,0.00022191,2]
[363083616,1748571059980,-1953.22,0.00022191,2]
[363083617,1748571059990,-1272.78,0.00022191,2]
[363083618,1748571060000,-775.17,0.00022191,2]
[363083619,1748571060010,-556.49,0.00022191,2]
[363083620,1748571060020,-1085.99,0.00022191,2]
[363083621,1748571060030,-1314.77,0.00022191,2]
[363083622,1748571060040,-420.0,0.00022191,2]
[363083623,1748571060051,-420.0,0.00022191,2]
[363083624,1748571060062,-1688.29,0.00022191,2]
[363083625,1748571060072,-2309.34,0.00022191,2]
[363083626,1748571060081,-911.34,0.00022191,2]
[363083627,1748571060091,-1032.18,0.00022191,2]
[363083628,1748571060101,-1920.4,0.00022191,2]
[363083629,1748571060110,-420.0,0.00022191,2]
[363083630,1748571060120,-468.79,0.00022191,2]
[363083631,1748571060131,-291.53379815,0.00022191,2]
[363083632,1748571060142,-6387.37,0.00022191,2]
[363083633,1748571060151,-1512.88,0.00022191,2]
[363083634,1748571060161,-420.0,0.00022191,2]
[363083635,1748571060171,-420.0,0.00022191,2]
[363083636,1748571060182,-489.59,0.00022191,2]
[363083637,1748571060192,-420.0,0.00022191,2]
[363083638,1748571060202,-430.56929037,0.00022191,2]
[363083639,1748571060213,-847.13,0.00022191,2]
[363083640,1748571060223,-420.0,0.00022191,2]
[363083641,1748571060233,-860.44,0.00022191,2]
[363083642,1748571060244,-14653.16,0.00022191,2]
[363083643,1748571060255,-420.0,0.00022191,2]
[363083644,1748571060266,-785.66,0.00022191,2]
[363083645,1748571060278,-420.0,0.00022191,2]
[363083646,1748571060292,-420.0,0.00022191,2]
[363083647,1748571060304,-7742.29,0.00022191,2]
[363083648,1748571060318,-622.9,0.00022191,2]
[363083649,1748571060329,-420.0,0.00022191,2]
[363083650,1748571060339,-420.0,0.00022191,2]
[363083651,1748571060351,-473.13,0.00022191,2]
[363083652,1748571060362,-420.0,0.00022191,2]
[363083653,1748571060374,-152.542066,0.00022191,7]
[363083654,1748571060384,-3290.35,0.00022191,2]
[363083655,1748571060395,-2940.31,0.00022191,2]
[363083656,1748571060406,-420.0,0.00022191,2]
[363083657,1748571060417,-197.443841,0.00022191,7]
[363083658,1748571060428,-197.443841,0.00022191,7]
[363083659,1748571060439,-197.443841,0.00022191,7]
[363083660,1748571060449,-26612.36,0.00022191,2]
[363083661,1748571060460,-588.75,0.00022191,2]
[363083662,1748571060470,-420.0,0.00022191,2]
[363083663,1748571060480,-420.0,0.00022191,2]
[363083664,1748571060490,-1562.86,0.00022191,2]
[363083665,1748571060500,-986.29,0.00022191,2]
[363083666,1748571060510,-728.17,0.00022191,2]
[363083667,1748571060525,-197.443841,0.00022191,7]
[363083668,1748571060535,-197.443841,0.00022191,7]
[363083669,1748571060545,-197.443841,0.00022191,7]
[363083670,1748571060555,-537.29,0.00022191,2]
[363083671,1748571060565,-420.0,0.00022191,2]
[363083672,1748571060575,-420.0,0.00022191,2]
[363083673,1748571060584,-528.73,0.00022191,2]
[363083674,1748571060594,-1859.64,0.00022191,2]
[363083675,1748571060604,-2827.13,0.00022191,2]
[363083676,1748571060613,-842.19,0.00022191,2]
[363083677,1748571060623,-713.49,0.00022191,2]
[363083678,1748571060633,-1631.16,0.00022191,2]
[363083679,1748571060643,-1581.89,0.00022191,2]
[363083680,1748571060653,-435.21,0.00022191,2]
[363083681,1748571060664,-649.84,0.00022191,2]
[363083682,1748571060674,-5066.68,0.00022191,2]
[363083683,1748571060684,-420.0,0.00022191,2]
[363083684,1748571060694,-420.0,0.00022191,2]
[363083685,1748571060703,-1420.64,0.00022191,2]
[363083686,1748571060713,-151.0,0.00022191,7]
[363083687,1748571060723,-301.725014,0.00022191,7]
[363083688,1748571060734,-1687.58,0.00022191,2]
[363083689,1748571060743,-3514.87,0.00022191,2]
[363083690,1748571060753,-153.03971,0.00022191,7]
[363083691,1748571060763,-13153.68,0.00022191,2]
[363083692,1748571060777,-1018.21,0.00022191,2]
[363083693,1748571060787,-2103.02,0.00022191,2]
[363083694,1748571060798,-885.69,0.00022191,2]
[363083695,1748571060807,-425.04801589,0.00022191,2]
[363083696,1748571060819,-420.0,0.00022191,2]
[363083697,1748571060829,-500.0,0.00022191,2]
[363083698,1748571060840,-497.82,0.00022191,2]
[363083699,1748571060850,-1992.01,0.00022191,2]
[363083700,1748571060861,-420.0,0.00022191,2]
[363083701,1748571060871,-420.0,0.00022191,2]
[363083702,1748571060881,-1865.97,0.00022191,2]
[363083703,1748571060890,-1444.55,0.00022191,2]
[363083704,1748571060900,-693.45,0.00022191,2]
[363083705,1748571060911,-2151.79,0.00022191,2]
[363083706,1748571060921,-1101.67,0.00022191,2]
[363083707,1748571060930,-420.0,0.00022191,2]
[363083708,1748571060941,-433.92,0.00022191,2]
[363083709,1748571060951,-609.42,0.00022191,2]
[363083710,1748571060961,-3810.63,0.00022191,2]
[363083711,1748571060972,-3899.99,0.00022191,2]
[363083712,1748571060982,-800.69,0.00022191,2]
[363083713,1748571060992,-420.0,0.00022191,2]
[363083714,1748571061002,-736.23,0.00022191,2]
[363083715,1748571061012,-420.0,0.00022191,2]
[363083716,1748571061026,-420.0,0.00022191,2]
[363083717,1748571061036,-488.45,0.00022191,2]
[363083718,1748571061047,-420.0,0.00022191,2]
[363083719,1748571061056,-632.96,0.00022191,2]
[363083720,1748571061067,-439.34,0.00022191,2]
[363083721,1748571061077,-8228.53,0.00022191,2]
[363083722,1748571061087,-2215.35,0.00022191,2]
[363083723,1748571061098,-995.24,0.00022191,2]
[363083724,1748571061108,-1601.15,0.00022191,2]
[363083725,1748571061119,-962.41,0.00022191,2]
[363083726,1748571061370,-420.0,0.00022191,2]
[363083727,1748571061381,-759.42,0.00022191,2]
[363083728,1748571061391,-420.0,0.00022191,2]
[363083729,1748571061400,-1218.4,0.00022191,2]
[363083730,1748571061410,-992.32,0.00022191,2]
[363083731,1748571061419,-420.0,0.00022191,2]
[363083732,1748571061429,-2195.94,0.00022191,2]
[363083733,1748571061439,-420.0,0.00022191,2]
[363083734,1748571061449,-1308.67,0.00022191,2]
[363083735,1748571061459,-420.0,0.00022191,2]
[363083736,1748571061470,-507.68,0.00022191,2]
[363083737,1748571061479,-2927.75,0.00022191,2]
[363083738,1748571061489,-5893.2,0.00022191,2]
[363083739,1748571061499,-420.0,0.00022191,2]
[363083740,1748571061508,-420.0,0.00022191,2]
[363083741,1748571061519,-3515.26,0.00022191,2]
[363083742,1748571061529,-485.8,0.00022191,2]
[363083743,1748571061539,-1816.39,0.00022191,2]
[363083744,1748571061548,-1156.46,0.00022191,2]
[363083745,1748571061558,-1608.01,0.00022191,2]
[363083746,1748571061567,-686.01,0.00022191,2]
[363083747,1748571061577,-420.0,0.00022191,2]
[363083748,1748571061587,-1407.81,0.00022191,2]
[363083749,1748571061596,-4912.24,0.00022191,2]
[363083750,1748571061606,-3494.97,0.00022191,2]
[363083751,1748571061616,-420.0,0.00022191,2]
[363083752,1748571061625,-420.0,0.00022191,2]
[363083753,1748571061635,-1472.77,0.00022191,2]
[363083754,1748571061645,-420.0,0.00022191,2]
[363083755,1748571061655,-420.0,0.00022191,2]
[363083756,1748571061664,-807.2,0.00022191,2]
[363083757,1748571061673,-1091.02,0.00022191,2]
[363083758,1748571061686,-14660.9,0.00022191,2]
[363083759,1748571061695,-883.05,0.00022191,2]
[363083760,1748571061704,-3796.78540822,0.00022191,2]
[363083762,1748571196318,-221.25505404,0.00019256,2]
[363083763,1748571197842,-171.47930532,0.00019256,2]
[363083764,1748571199443,-197.47902788,0.00019256,2]
[363083765,1748571223055,-289.30758488,0.00019256,2]
[363083766,1748571225705,-176.39902788,0.00019256,2]
[363083767,1748571225729,-21.08,0.00021096,2]
[363083768,1748571228096,-142.74,0.00021096,2]
[363083769,1748571228122,-132.71490422,0.00021118,2]
[363083770,1748571229949,-189.06709833,0.00021118,2]
[363083771,1748571231563,-187.78830779,0.00021118,2]
[363083772,1748571234516,-52.33968966,0.00021118,2]
[363083773,1748571234539,-605.19031034,0.00021213,2]
[363083774,1748571236462,-250.05296406,0.00021213,2]
[363083775,1748571238654,-163.62340537,0.00021213,2]
[363083776,1748571262634,-208.01,0.00021052,2]
[363083777,1748571262656,-36.01538033,0.00021082,2]
[363083778,1748571379571,2774.0,0.00025,60]
[363083792,1748571645403,-158.12641717,0.00020709,2]
[363083795,1748571683431,2000.0,0.00020662,120]
[363083796,1748571729173,3571.91,0.00023,30]
[363083806,1748571883821,8912.16248213,0.00023,30]
[363083816,1748571932380,172.00850954,0.0002,120]
[363083817,1748571955826,-186.81855271,0.0001902,2]
[363083818,1748571957384,-207.0,0.0001902,2]
[363083833,1748572074257,2500.0,0.0001,2]
[363083834,1748572074285,1508.95746611,0.0001,2]
[363083869,1748572167090,162.96,0.00013699,2]
[363083893,1748572231716,-578.6680823,0.00019019,2]
[363083895,1748572231728,-621.3319177,0.00019019,2]
[363083897,1748572231738,-200.0,0.0001902,2]
[363083899,1748572231748,-38785.23438748,0.0001902,2]
[363083901,1748572231758,-250.0,0.00019265,2]
[363083903,1748572231770,-200.0,0.00019361,2]
[363083904,1748572231780,-200.0,0.0001951,2]
[363083905,1748572231790,-282.24824364,0.0001999,2]
[363083906,1748572231799,-850.0,0.00019999,2]
[363083907,1748572231809,-1130.00382119,0.0002,2]
[363083908,1748572231820,-26739.54744555,0.0002,2]
[363083909,1748572231832,-5971.5676291,0.0002,2]
[363083910,1748572231851,-8971.46852804,0.0002,2]
[363083911,1748572231864,-2450.25572962,0.0002,2]
[363083912,1748572231885,-37294.85547344,0.0002,2]
[363083913,1748572231901,-39701.01955319,0.0002,4]
[363083914,1748572231910,-85627.1172856,0.0002,2]
[363083915,1748572231920,-674.8,0.00020087,2]
[363083916,1748572231930,-167.74,0.00020097,2]
[363083917,1748572231939,-1834.95,0.00020132,2]
[363083918,1748572231949,-151.0,0.00020137,2]
[363083919,1748572231959,-151.0,0.00020169,2]
[363083920,1748572231968,-162.96,0.00020187,2]
[363083921,1748572231977,-200.0,0.00020222,2]
[363083922,1748572231986,-250.0,0.00020222,2]
[363083923,1748572231996,-570.64,0.00020255,2]
[363083924,1748572232006,-23900.0,0.0002028,2]
[363083925,1748572232015,-653.08336726,0.00020382,2]
[363083926,1748572232025,-287.6,0.00020425,2]
[363083927,1748572232034,-361.0,0.0002044,2]
[363083928,1748572232044,-1400.26,0.0002046,2]
[363083929,1748572232055,-216.0,0.00020485,2]
[363083930,1748572232065,-157.6,0.00020632,2]
[363083932,1748572232075,-157.6,0.00020643,2]
[363083934,1748572232084,-157.6,0.00020655,2]
[363083935,1748572232094,-280.49,0.00020658,2]
[363083936,1748572232103,-157.6,0.00020666,2]
[363083937,1748572232112,-157.6,0.00020677,2]
[363083939,1748572232121,-150.0,0.00020684,7]
[363083941,1748572232131,-5924.18883358,0.00020688,2]
[363083943,1748572232141,-157.6,0.00020689,2]
[363083945,1748572232150,-157.6,0.000207,2]
[363083946,1748572232159,-414.14358283,0.00020709,2]
[363083948,1748572232169,-157.6,0.00020712,2]
[363083950,1748572232178,-157.6,0.00020723,2]
[363083952,1748572232188,-157.6,0.00020735,2]
[363083955,1748572232198,-203.45,0.00020793,2]
[363083957,1748572232208,-458.38,0.00020821,2]
[363083959,1748572232218,-1680.0,0.00020831,2]
[363083961,1748572232228,-10710.04,0.00020892,2]
[363083963,1748572232237,-200.0,0.00020921,2]
[363083965,1748572232247,-200.0,0.00020922,2]
[363083967,1748572232256,-250.0,0.00020922,2]
[363083969,1748572232266,-250.0,0.00020922,2]
[363083971,1748572232276,-9561.9,0.00020962,2]
[363083974,1748572232287,-5423.95,0.00020978,2]
[363083976,1748572232296,-160.09,0.00020986,2]
[363083978,1748572232306,-166.66,0.00020994,2]
[363083980,1748572232316,-5437.70803905,0.00021004,2]
[363083982,1748572232326,-963.98461967,0.00021082,2]
[363083984,1748572232336,-398.10446559,0.00021097,2]
[363083986,1748572232346,-151.0,0.00021124,2]
[363083988,1748572232356,-1115.157653,0.00021124,2]
[363083990,1748572232366,-153.17477443,0.00021124,2]
[363083992,1748572232376,-156.59142641,0.00021124,2]
[363083994,1748572232386,-668.65185757,0.00021124,2]
[363083996,1748572232397,-207.4,0.00021124,2]
[363083999,1748572232406,-300.78,0.0002137,2]
[363084002,1748572232416,-1055.92,0.0002152,2]
[363084005,1748572232426,-303.91,0.00021703,2]
[363084008,1748572232437,-305.39,0.00021703,2]
[363084011,1748572232446,-300.3,0.00021703,2]
[363084013,1748572232455,-304.18,0.00021703,2]
[363084015,1748572232466,-301.79,0.00021709,2]
[363084017,1748572232477,-302.11,0.00021709,2]
[363084019,1748572232487,-305.74,0.00021709,2]
[363084021,1748572232497,-303.23,0.00021709,2]
[363084023,1748572232506,-301.91,0.00021709,2]
[363084025,1748572232515,-301.68,0.00021714,2]
[363084027,1748572232525,-1000.0,0.00021717,2]
[363084029,1748572232535,-12682.93918818,0.00021717,2]
[363084031,1748572232546,-209.66106066,0.00021746,2]
[363084032,1748572232556,-221.81347641,0.00021746,2]
[363084035,1748572232566,-350.6240775,0.00021746,2]
[363084037,1748572232576,-1316.163148,0.00021747,3]
[363084039,1748572232587,-1062.35918778,0.00021747,2]
[363084041,1748572232597,-1127.91538942,0.00021747,2]
[363084043,1748572232613,-1067.47148946,0.00021747,2]
[363084045,1748572232623,-1132.14728795,0.00021747,2]
[363084047,1748572232632,-1099.52575948,0.00021747,2]
[363084049,1748572232642,-1030.56560867,0.00021747,2]
[363084051,1748572232651,-1034.15886581,0.00021747,2]
[363084052,1748572232660,-1032.28350503,0.00021747,2]
[363084054,1748572232670,-1149.60551803,0.00021747,2]
[363084056,1748572232680,-1008.14153903,0.00021747,2]
[363084058,1748572232692,-1077.80706071,0.00021747,2]
[363084060,1748572232701,-1081.23079357,0.00021747,2]
[363084062,1748572232711,-1763.53515865,0.00021747,2]
[363084064,1748572232721,-12682.93918816,0.00021759,2]
[363084066,1748572232731,-160.09,0.00021773,2]
[363084068,1748572232741,-300.47,0.00021799,2]
[363084070,1748572232751,-304.99,0.00021799,2]
[363084072,1748572232760,-300.79,0.00021799,2]
[363084074,1748572232770,-303.48,0.00021799,2]
[363084076,1748572232779,-304.02,0.00021799,2]
[363084078,1748572232789,-305.12,0.00021799,2]
[363084080,1748572232799,-301.24,0.000218,2]
[363084082,1748572232808,-500.0,0.000218,2]
[363084084,1748572232818,-819.5694,0.000218,2]
[363084086,1748572232827,-12682.93918816,0.000218,2]
[363084088,1748572232837,-187.53949935,0.00021808,2]
[363084090,1748572232846,-465.2087,0.00021817,2]
[363084092,1748572232856,-2500.0,0.00021817,2]
[363084094,1748572232866,-167.26260858,0.00021817,2]
[363084096,1748572232876,-376.13417333,0.00021817,2]
[363084098,1748572232886,-303.6,0.0002183,2]
[363084100,1748572232895,-12682.93918816,0.00021842,2]
[363084102,1748572232905,-12682.93918816,0.00021883,2]
[363084104,1748572232914,-305.8,0.00021891,2]
[363084106,1748572232924,-303.56,0.00021891,2]
[363084108,1748572232933,-302.73,0.00021892,2]
[363084110,1748572232943,-1000.0,0.00021895,2]
[363084112,1748572232953,-198.07701021,0.000219,2]
[363084114,1748572232962,-198.07701019,0.000219,2]
[363084115,1748572232972,-1000.0,0.00021904,2]